fUSD/lending_fUSD_20260221
["ID","MTS","AMOUNT","RATE_DAILY","PERIOD"]
[406269506,1771675838581,-151.0,0.00014605,2]
[406269507,1771675838591,-151.0,0.00014605,2]
[406269508,1771675838600,-151.0,0.00014605,2]
[406269509,1771675838610,-151.0,0.00014605,2]
[406269510,1771675838620,-151.0,0.00014605,2]
[406269511,1771675838630,-200.0,0.00014605,2]
[406269512,1771675838639,-500.0,0.00014605,2]
[406269513,1771675838649,-500.0,0.00014605,2]
[406269514,1771675838659,-500.0,0.00014605,2]
[406269515,1771675838668,-500.0,0.00014605,2]
[406269516,1771675838677,-500.0,0.00014605,2]
[406269517,1771675838687,-500.0,0.00014605,2]
[406269518,1771675838701,-500.0,0.00014605,2]
[406269519,1771675838712,-500.0,0.00014605,2]
[406269520,1771675838919,-500.0,0.00014605,2]
[406269521,1771675838929,-500.0,0.00014605,2]
[406269522,1771675838939,-500.0,0.00014605,2]
[406269523,1771675838949,-500.0,0.00014605,2]
[406269524,1771675838959,-500.0,0.00014605,2]
[406269525,1771675838969,-500.0,0.00014607,2]
[406269526,1771675838979,-500.0,0.00014607,2]
[406269527,1771675838989,-500.0,0.00014607,2]
[406269528,1771675838999,-500.0,0.00014607,2]
[406269529,1771675839009,-500.0,0.00014607,2]
[406269530,1771675839018,-500.0,0.00014607,2]
[406269531,1771675839027,-500.0,0.00014607,2]
[406269532,1771675839038,-500.0,0.00014607,2]
[406269533,1771675839047,-500.0,0.00014607,2]
[406269534,1771675839057,-300.0,0.0001461,2]
[406269535,1771675839067,-1045.51171664,0.00014613,5]
[406269536,1771675839076,-311.31506662,0.00014613,2]
[406269537,1771675839085,-151.0,0.00014613,2]
[406269538,1771675839094,-1932.938,0.00014613,2]
[406269539,1771675839104,-182.014,0.00014613,2]
[406269540,1771675839113,-999.99,0.00014613,2]
[406269541,1771675839122,-4999.99,0.00014613,2]
[406269542,1771675839131,-9999.99,0.00014613,2]
[406269543,1771675839140,-200774.85,0.00014613,2]
[406269544,1771675839149,-5301.71,0.00014613,2]
[406269545,1771675839158,-9999.99,0.00014613,2]
[406269546,1771675839167,-299.99,0.00014613,2]
[406269547,1771675839176,-9999.99,0.00014613,2]
[406269548,1771675839185,-150.99,0.00014613,2]
[406269549,1771675839195,-9999.99,0.00014613,2]
[406269550,1771675839204,-150.99,0.00014613,2]
[406269551,1771675839213,-1848.26,0.00014613,2]
[406269552,1771675839223,-5403.05,0.00014613,2]
[406269553,1771675839231,-776.31040478,0.00014613,2]
[406269554,1771675839241,-10000.0,0.00014614,2]
[406269555,1771675839250,-31483.7467,0.00014614,2]
[406269556,1771675839259,-151.0,0.00014634,2]
[406269557,1771675839268,-1545.8998,0.00014685,2]
[406269558,1771675839277,-9000.0,0.000147,5]
[406269559,1771675839286,-776.62150607,0.00014713,5]
[406269560,1771675839295,-1000.0,0.00014714,2]
[406269561,1771675839305,-12000.0,0.000148,5]
[406269562,1771675839314,-500.0,0.00014879,2]
[406269563,1771675839324,-15000.0,0.000149,5]
[406269564,1771675839333,-155.81953974,0.000149,2]
[406269565,1771675839342,-718.0,0.00014934,2]
[406269566,1771675839351,-250.0,0.00015,2]
[406269567,1771675839363,-170.1,0.0001504,2]
[406269568,1771675839372,-500.0,0.00015153,2]
[406269569,1771675839381,-200.0,0.00015153,2]
[406269570,1771675839391,-545.79913084,0.00015153,2]
[406269571,1771675839400,-162.93997784,0.00015173,2]
[406269572,1771675839409,-168.71198045,0.00015173,2]
[406269573,1771675839418,-503.18537404,0.00015173,2]
[406269574,1771675839429,-500.0,0.00015173,2]
[406269575,1771675839438,-226.19494716,0.00015173,2]
[406269576,1771675839447,-184.37223932,0.00015173,2]
[406269577,1771675839456,-246.364609,0.00015173,2]
[406269578,1771675839465,-166.88843163,0.00015173,2]
[406269579,1771675839474,-165.27434071,0.00015173,2]
[406269580,1771675839483,-501.05660533,0.00015173,2]
[406269581,1771675839493,-230.31122448,0.00015173,2]
[406269582,1771675839502,-500.0,0.00015173,2]
[406269583,1771675839511,-590.39410538,0.00015173,2]
[406269584,1771675839520,-493.47361044,0.00015173,2]
[406269585,1771675839529,-501.37835228,0.00015173,2]
[406269586,1771675839538,-501.38512914,0.00015173,2]
[406269587,1771675839547,-500.41653761,0.00015173,2]
[406269588,1771675839556,-500.0,0.00015173,2]
[406269589,1771675839565,-500.0,0.00015173,2]
[406269590,1771675839574,-500.49256887,0.00015173,2]
[406269591,1771675839584,-514.56546432,0.00015173,2]
[406269592,1771675839592,-170.25855027,0.00015173,2]
[406269593,1771675839601,-500.30226838,0.00015173,2]
[406269594,1771675839611,-167.41603795,0.00015173,2]
[406269595,1771675839620,-500.0,0.00015173,2]
[406269596,1771675839629,-500.0,0.00015173,2]
[406269597,1771675839638,-500.8784215,0.00015173,2]
[406269598,1771675839648,-164.4744294,0.00015173,2]
[406269599,1771675839658,-502.63635996,0.00015173,2]
[406269600,1771675839667,-453.19896023,0.00015173,2]
[406269601,1771675839677,-500.57029543,0.00015173,2]
[406269602,1771675839686,-500.18211712,0.00015173,2]
[406269603,1771675839698,-500.0,0.00015173,2]
[406269604,1771675839708,-500.0,0.00015173,2]
[406269605,1771675839718,-500.0,0.00015173,2]
[406269606,1771675839728,-500.0,0.00015173,2]
[406269607,1771675839742,-150.65,0.000152,2]
[406269608,1771675839752,-1729.98,0.00015239,2]
[406269609,1771675839761,-606.1313001,0.00015332,2]
[406269610,1771675839771,-325.66480715,0.00015427,2]
[406269611,1771675839780,-150.0,0.0001547,2]
[406269612,1771675839789,-150.0,0.00015486,2]
[406269613,1771675839800,-500.0,0.00015547,2]
[406269614,1771675839812,-500.0,0.00015547,2]
[406269615,1771675839822,-500.0,0.00015547,2]
[406269616,1771675839831,-500.0,0.00015547,2]
[406269617,1771675839839,-500.0,0.00015547,2]
[406269618,1771675839849,-513.53363328,0.00015547,2]
[406269619,1771675839858,-500.0,0.00015547,2]
[406269620,1771675839867,-500.0,0.00015547,2]
[406269621,1771675839877,-500.0,0.00015547,2]
[406269622,1771675839886,-564.4785355,0.00015547,2]
[406269623,1771675839895,-500.0,0.00015547,2]
[406269624,1771675839905,-500.0,0.00015547,2]
[406269625,1771675839914,-500.0,0.00015547,2]
[406269626,1771675839923,-500.0,0.00015547,2]
[406269627,1771675839932,-500.0,0.00015547,2]
[406269628,1771675839941,-511.47956793,0.00015547,2]
[406269629,1771675839950,-500.0,0.00015547,2]
[406269630,1771675839958,-500.0,0.00015547,2]
[406269631,1771675839968,-532.19255729,0.00015547,2]
[406269632,1771675839976,-500.0,0.00015547,2]
[406269633,1771675839985,-500.0,0.00015547,2]
[406269634,1771675839994,-500.0,0.00015547,2]
[406269635,1771675840003,-500.0,0.00015547,2]
[406269636,1771675840012,-601.05527925,0.00015547,2]
[406269637,1771675840021,-500.0,0.00015547,2]
[406269638,1771675840030,-500.0,0.00015547,2]
[406269639,1771675840039,-500.0,0.00015547,2]
[406269640,1771675840049,-500.0,0.00015547,2]
[406269641,1771675840058,-500.0,0.00015547,2]
[406269642,1771675840067,-500.0,0.00015547,2]
[406269643,1771675840076,-500.0,0.00015547,2]
[406269644,1771675840085,-500.0,0.00015547,2]
[406269645,1771675840094,-500.0,0.00015547,2]
[406269646,1771675840103,-500.0,0.00015547,2]
[406269647,1771675840112,-500.0,0.00015547,2]
[406269648,1771675840122,-500.0,0.00015547,2]
[406269649,1771675840132,-554.43343843,0.00015547,2]
[406269651,1771675840141,-541.91630413,0.00015547,2]
[406269652,1771675840150,-503.02114283,0.00015547,2]
[406269653,1771675840159,-500.0,0.00015547,2]
[406269654,1771675840167,-500.0,0.00015547,2]
[406269655,1771675840178,-500.0,0.00015547,2]
[406269656,1771675840187,-500.0,0.00015547,2]
[406269657,1771675840196,-500.0,0.00015547,2]
[406269658,1771675840205,-500.0,0.00015547,2]
[406269659,1771675840214,-500.0,0.00015547,2]
[406269660,1771675840223,-500.0,0.00015547,2]
[406269661,1771675840232,-540.78795508,0.00015547,2]
[406269662,1771675840242,-500.0,0.00015547,2]
[406269663,1771675840253,-500.0,0.00015547,2]
[406269664,1771675840262,-500.0,0.00015547,2]
[406269665,1771675840271,-500.0,0.00015547,2]
[406269666,1771675840279,-500.0,0.00015547,2]
[406269667,1771675840288,-500.0,0.00015547,2]
[406269668,1771675840297,-500.0,0.00015547,2]
[406269669,1771675840306,-500.0,0.00015547,2]
[406269670,1771675840315,-500.0,0.00015547,2]
[406269671,1771675840324,-500.0,0.00015547,2]
[406269672,1771675840333,-500.0,0.00015547,2]
[406269673,1771675840342,-500.0,0.00015547,2]
[406269674,1771675840351,-500.0,0.00015547,2]
[406269675,1771675840360,-500.0,0.00015547,2]
[406269676,1771675840369,-330.0,0.00015547,2]
[406269677,1771675840380,-500.0,0.00015547,2]
[406269678,1771675840389,-500.0,0.00015547,2]
[406269679,1771675840398,-500.0,0.00015547,2]
[406269680,1771675840407,-500.0,0.00015547,2]
[406269681,1771675840416,-500.0,0.00015547,2]
[406269682,1771675840425,-500.0,0.00015547,2]
[406269683,1771675840434,-500.0,0.00015547,2]
[406269684,1771675840443,-500.0,0.00015547,2]
[406269685,1771675840452,-616.19377918,0.00015547,2]
[406269686,1771675840461,-500.0,0.00015547,2]
[406269687,1771675840471,-500.0,0.00015547,2]
[406269688,1771675840481,-274.81553287,0.00015547,2]
[406269689,1771675840493,-500.0,0.00015547,2]
[406269690,1771675840502,-500.0,0.00015547,2]
[406269691,1771675840511,-500.0,0.00015547,2]
[406269692,1771675840520,-500.0,0.00015547,2]
[406269693,1771675840529,-500.0,0.00015547,2]
[406269694,1771675840539,-500.0,0.00015547,2]
[406269695,1771675840550,-500.0,0.00015547,2]
[406269696,1771675840559,-500.0,0.00015547,2]
[406269697,1771675840568,-500.0,0.00015547,2]
[406269698,1771675840577,-500.0,0.00015547,2]
[406269699,1771675840586,-500.0,0.00015547,2]
[406269700,1771675840595,-500.0,0.00015547,2]
[406269701,1771675840603,-500.0,0.00015547,2]
[406269702,1771675840612,-500.0,0.00015547,2]
[406269703,1771675840621,-500.0,0.00015547,2]
[406269704,1771675840630,-500.0,0.00015547,2]
[406269705,1771675840639,-500.0,0.00015547,2]
[406269706,1771675840648,-500.0,0.00015547,2]
[406269707,1771675840657,-500.0,0.00015547,2]
[406269708,1771675840666,-505.36393545,0.00015547,2]
[406269710,1771675840675,-500.0,0.00015547,2]
[406269712,1771675840684,-504.39683652,0.00015547,2]
[406269714,1771675840697,-500.0,0.00015547,2]
[406269716,1771675840706,-500.0,0.00015547,2]
[406269718,1771675840715,-500.0,0.00015547,2]
[406269720,1771675840724,-500.0,0.00015547,2]
[406269722,1771675840734,-500.0,0.00015547,2]
[406269724,1771675840743,-500.0,0.00015547,2]
[406269726,1771675840752,-500.0,0.00015547,2]
[406269728,1771675840761,-500.0,0.00015547,2]
[406269730,1771675840772,-500.0,0.00015547,2]
[406269732,1771675840781,-500.0,0.00015547,2]
[406269734,1771675840790,-500.0,0.00015547,2]
[406269736,1771675840799,-500.0,0.00015547,2]
[406269738,1771675840808,-500.0,0.00015547,2]
[406269740,1771675840817,-500.0,0.00015547,2]
[406269742,1771675840827,-500.0,0.00015547,2]
[406269744,1771675840835,-500.0,0.00015547,2]
[406269746,1771675840845,-500.0,0.00015547,2]
[406269748,1771675840854,-500.0,0.00015547,2]
[406269750,1771675840862,-500.0,0.00015547,2]
[406269751,1771675840872,-500.0,0.00015547,2]
[406269753,1771675840881,-500.0,0.00015547,2]
[406269756,1771675840890,-500.0,0.00015547,2]
[406269758,1771675840899,-500.0,0.00015547,2]
[406269760,1771675840908,-500.0,0.00015547,2]
[406269762,1771675840917,-500.0,0.00015547,2]
[406269763,1771675840926,-627.47385881,0.00015547,2]
[406269765,1771675840935,-500.0,0.00015547,2]
[406269767,1771675840944,-500.0,0.00015547,2]
[406269769,1771675840953,-500.0,0.00015547,2]
[406269771,1771675840962,-500.0,0.00015547,2]
[406269773,1771675840971,-500.0,0.00015547,2]
[406269776,1771675840980,-500.0,0.00015547,2]
[406269777,1771675840989,-500.0,0.00015547,2]
[406269779,1771675840998,-500.0,0.00015547,2]
[406269781,1771675841007,-500.0,0.00015547,2]
[406269783,1771675841016,-500.0,0.00015547,2]
[406269785,1771675841024,-204.27737629,0.00015547,2]
[406269787,1771675841033,-500.0,0.00015547,2]
[406269789,1771675841042,-500.0,0.00015547,2]
[406269791,1771675841050,-500.0,0.00015547,2]
[406269793,1771675841059,-500.0,0.00015547,2]
[406269795,1771675841068,-500.0,0.00015547,2]
[406269797,1771675841077,-386.77491301,0.00015547,2]
[406269799,1771675841085,-255.0,0.0001563,2]
[406269801,1771675841094,-200.0,0.00015701,2]
[406269803,1771675841103,-1000.0,0.00015721,2]
[406269805,1771675841112,-1000.0,0.00015721,2]
[406269807,1771675841122,-1000.0,0.00015721,2]
[406269809,1771675841131,-1001.52699276,0.00015721,2]
[406269811,1771675841140,-193.0,0.00015891,2]
[406269813,1771675841149,-420.0,0.00015891,2]
[406269815,1771675841158,-500.0,0.00015899,2]
[406269817,1771675841167,-500.0,0.00015899,2]
[406269818,1771675841176,-300.65699348,0.0001595,2]
[406269819,1771675841186,-250.0,0.0001595,2]
[406269820,1771675841195,-2346.81250728,0.0001596,2]
[406269821,1771675841204,-1680.0,0.00015964,2]
[406269822,1771675841213,-195.0,0.00015964,2]
[406269823,1771675841223,-1729.98,0.00015965,2]
[406269824,1771675841232,-250.0,0.00015965,2]
[406269825,1771675841241,-500.0,0.00015986,2]
[406269826,1771675841250,-195.0,0.00015986,2]
[406269827,1771675841259,-150.04229698,0.00015986,2]
[406269828,1771675841267,-300.0,0.00015986,2]
[406269829,1771675841276,-600.0,0.00015986,2]
[406269830,1771675841285,-193.0,0.00015986,2]
[406269831,1771675841295,-521.0,0.00016,2]
[406269832,1771675841305,-9999.99,0.00016116,2]
[406269833,1771675841314,-21528.9794147,0.00016177,2]
[406269834,1771675841323,-170.1,0.00016197,2]
[406269835,1771675841332,-200.0,0.00016249,2]
[406269836,1771675841341,-1500.0,0.00016268,2]
[406269837,1771675841350,-1500.0,0.00016268,2]
[406269838,1771675841359,-1500.0,0.00016268,2]
[406269839,1771675841369,-212.32,0.00016438,30]
[406269840,1771675841378,-25000.0,0.00016438,2]
[406269841,1771675841386,-263.72,0.0001648,2]
[406269842,1771675841395,-178.80221492,0.00016514,2]
[406269843,1771675841404,-1729.98,0.00016691,2]
[406269844,1771675841413,-200.0,0.00016797,2]
[406269845,1771675841423,-2000.0,0.00016816,2]
[406269846,1771675841432,-2000.0,0.00016816,2]
[406269847,1771675841442,-2000.0,0.00016816,2]
[406269848,1771675841450,-28555.31973252,0.00016824,2]
[406269849,1771675841459,-433.0,0.00016835,2]
[406269850,1771675841468,-3435.57,0.00016994,2]
[406269851,1771675841478,-300.0,0.00017,2]
[406269852,1771675841487,-583.31,0.00017024,2]
[406269853,1771675841496,-214.6612564,0.00017264,2]
[406269854,1771675841505,-200.0,0.00017345,2]
[406269855,1771675841514,-170.1,0.00017354,2]
[406269856,1771675841523,-2500.0,0.00017364,2]
[406269857,1771675841532,-350.90980006,0.00017364,2]
[406269858,1771675841541,-2500.0,0.00017364,2]
[406269859,1771675841551,-587.0,0.00017401,2]
[406269860,1771675841560,-1729.98,0.00017416,2]
[406269861,1771675841568,-2351.0,0.00017561,2]
[406269862,1771675841578,-991.7876198,0.00017808,2]
[406269863,1771675841587,-991.7876198,0.00017808,2]
[406269864,1771675841596,-991.7876198,0.00017808,2]
[406269865,1771675841605,-991.7876198,0.00017808,2]
[406269866,1771675841613,-991.7876198,0.00017808,2]
[406269867,1771675841623,-991.7876198,0.00017808,2]
[406269868,1771675841631,-991.7876198,0.00017808,2]
[406269869,1771675841640,-991.7876198,0.00017808,2]
[406269870,1771675841650,-991.7876198,0.00017808,2]
[406269871,1771675841659,-991.7876198,0.00017808,2]
[406269872,1771675841668,-991.7876198,0.00017808,2]
[406269873,1771675841679,-991.7876198,0.00017808,2]
[406269874,1771675841688,-991.7876198,0.00017808,2]
[406269875,1771675841701,-991.7876198,0.00017808,2]
[406269876,1771675841711,-991.7876198,0.00017808,2]
[406269877,1771675841720,-991.7876198,0.00017808,2]
[406269878,1771675841731,-991.7876198,0.00017808,2]
[406269879,1771675841741,-991.7876198,0.00017808,2]
[406269880,1771675841751,-991.7876198,0.00017808,2]
[406269881,1771675841761,-991.7876198,0.00017808,2]
[406269882,1771675841771,-991.7876198,0.00017808,2]
[406269883,1771675841780,-1020.12440893,0.00017808,2]
[406269884,1771675841789,-1020.12440893,0.00017808,2]
[406269885,1771675841798,-1020.12440893,0.00017808,2]
[406269886,1771675841807,-1020.12440893,0.00017808,2]
[406269887,1771675841816,-1020.12440893,0.00017808,2]
[406269888,1771675841825,-1020.12440893,0.00017808,2]
[406269889,1771675841834,-1020.12440893,0.00017808,2]
[406269890,1771675841843,-800.0,0.00017808,2]
[406269891,1771675841852,-150.0,0.00017877,2]
[406269892,1771675841861,-3000.0,0.00017912,2]
[406269893,1771675841876,-3000.0,0.00017912,2]
[406269894,1771675841885,-200.0,0.00017937,2]
[406269895,1771675841894,-736.0,0.00018127,2]
[406269896,1771675841904,-900.0,0.00018338,2]
[406269897,1771675841913,-9152.8,0.00018372,2]
[406269898,1771675841922,-2831.08124477,0.0001846,2]
[406269899,1771675841932,-3500.0,0.0001846,2]
[406269900,1771675841941,-266.36645499,0.00018489,2]
[406269901,1771675841950,-161.42931334,0.0001854,2]
[406269902,1771675841959,-294.68081623,0.0001854,2]
[406269903,1771675841968,-162.05016959,0.0001854,2]
[406269904,1771675841978,-474.05379574,0.0001854,2]
[406269905,1771675841987,-500.0,0.0001854,2]
[406269906,1771675841998,-166.8182516,0.0001854,2]
[406269907,1771675842006,-161.94949149,0.0001854,2]
[406269908,1771675842015,-500.0,0.0001854,2]
[406269909,1771675842024,-502.50033053,0.0001854,2]
[406269910,1771675842034,-500.0,0.0001854,2]
[406269911,1771675842043,-162.09416369,0.0001854,2]
[406269912,1771675842052,-500.0,0.0001854,2]
[406269913,1771675842062,-173.74378417,0.00018725,2]
[406269914,1771675842073,-160.0,0.00018725,2]
[406269915,1771675842084,-800.0,0.00018904,2]
[406269916,1771675842094,-150.45786358,0.00018908,2]
[406269917,1771675842104,-400.0,0.00019,2]
[406269918,1771675842114,-350.0,0.00019,2]
[406269919,1771675842125,-4000.0,0.00019008,2]
[406269920,1771675842135,-823.0,0.00019054,2]
[406269921,1771675842144,-1000.0,0.00019088,2]
[406269922,1771675842155,-1000.0,0.00019088,2]
[406269923,1771675842165,-702.77443873,0.00019088,2]
[406269924,1771675842174,-150.0,0.00019178,2]
[406269925,1771675842183,-28555.31973252,0.00019235,2]
[406269926,1771675842192,-14503.06,0.0001924,2]
[406269927,1771675842204,-3292.0,0.00019317,2]
[406269928,1771675842214,-156.45193805,0.00019514,3]
[406269929,1771675842223,-1252.0,0.0001952,2]
[406269930,1771675842234,-3467.83780146,0.00019556,2]
[406269931,1771675842245,-345.648398,0.00019636,2]
[406269932,1771675842254,-500.0,0.00019636,2]
[406269933,1771675842263,-169.88351399,0.00019659,2]
[406269934,1771675842272,-900.0,0.00019708,2]
[406269935,1771675842280,-250.0,0.00019726,2]
[406269936,1771675842289,-265.93928549,0.00020274,2]
[406269937,1771675842299,-212.32,0.00020467,30]
[406269938,1771675842307,-1152.0,0.00020864,2]
[406269939,1771675842316,-400.0,0.00021,2]
[406269940,1771675842326,-769.0,0.00021029,2]
[406269941,1771675842337,-2203.483325,0.00021232,7]
[406269942,1771675842347,-4609.0,0.00021248,2]
[406269943,1771675842356,-28555.31973252,0.00021645,2]
[406269944,1771675842365,-500.0,0.00022066,2]
[406269945,1771675842374,-26646.57,0.000221,2]
[406269946,1771675842383,-521.0,0.000224,7]
[406269947,1771675842392,-1613.0,0.00022845,2]
[406269948,1771675842400,-367.65,0.00023,7]
[406269949,1771675842410,-160.0,0.00023,2]
[406269950,1771675842419,-450.0,0.00023,2]
[406269951,1771675842428,-6453.0,0.00023373,2]
[406269952,1771675842437,-576.0,0.00023377,2]
[406269953,1771675842446,-576.0,0.00023526,2]
[406269954,1771675842455,-576.0,0.0002357,2]
[406269955,1771675842465,-576.0,0.00023611,2]
[406269956,1771675842473,-576.0,0.00023659,2]
[406269957,1771675842482,-576.0,0.00023874,2]
[406269958,1771675842491,-576.0,0.0002389,2]
[406269959,1771675842500,-576.0,0.00023892,2]
[406269960,1771675842509,-576.0,0.00024017,2]
[406269961,1771675842518,-28555.31973252,0.00024055,2]
[406269962,1771675842527,-576.0,0.00024067,2]
[406269963,1771675842535,-576.0,0.0002407,2]
[406269964,1771675842544,-422.59738712,0.00024244,2]
[406269965,1771675842553,-576.0,0.0002433,2]
[406269966,1771675842562,-576.0,0.00024348,2]
[406269967,1771675842571,-576.0,0.00024426,2]
[406269968,1771675842580,-576.0,0.00024478,2]
[406269969,1771675842589,-212.32,0.00024496,30]
[406269970,1771675842598,-150.0,0.00024658,2]
[406269971,1771675842606,-576.0,0.00024673,2]
[406269972,1771675842615,-576.0,0.00024692,2]
[406269973,1771675842624,-169.88351399,0.00024704,2]
[406269974,1771675842633,-576.0,0.00024812,2]
[406269975,1771675842643,-576.0,0.00024829,2]
[406269976,1771675842652,-26646.57,0.000249,2]
[406269977,1771675842661,-576.0,0.0002497,2]
[406269978,1771675842670,-2258.0,0.00025015,2]
[406269979,1771675842679,-576.0,0.00025176,2]
[406269980,1771675842689,-576.0,0.00025265,2]
[406269981,1771675842702,-576.0,0.0002532,2]
[406269982,1771675842712,-576.0,0.0002544,2]
[406269983,1771675842720,-576.0,0.00025705,2]
[406269984,1771675842730,-9035.0,0.00025711,2]
[406269985,1771675842739,-150.0,0.0002589,2]
[406269986,1771675842748,-263.72,0.00025932,2]
[406269987,1771675842758,-204.5,0.00026052,12]
[406269988,1771675842768,-28555.31973252,0.00026466,2]
[406269989,1771675842777,-9999.99,0.00026591,2]
[406269990,1771675842786,-150.0,0.00027185,2]
[406269991,1771675842796,-184.17,0.00027284,2]
[406269992,1771675842945,-1623.0,0.00027391,2]
[406269993,1771675842954,-1000.0,0.00027397,20]
[406269994,1771675842964,-26646.57,0.000276,2]
[406269995,1771675842973,-583.31,0.00027643,2]
[406269996,1771675842982,-367.65,0.000278,7]
[406269997,1771675842991,-5141.461092,0.0002831,30]
[406269998,1771675843000,-212.32,0.00028525,30]
[406269999,1771675843010,-150.0,0.00028544,2]
[406270000,1771675843019,-521.0,0.000288,13]
[406270001,1771675843028,-28555.31973252,0.00028876,2]
[406270002,1771675843037,-200.0,0.00028888,18]
[406270003,1771675843046,-202.44752766,0.0002965,2]
[406270004,1771675843056,-169.88351399,0.00029749,2]
[406270005,1771675843066,-150.0,0.00029971,2]
[406270006,1771675843076,-1000.0,0.00030131,2]
[406270007,1771675843085,-1000.0,0.00030131,2]
[406270008,1771675843095,-326.65,0.000307,30]
[406270009,1771675843104,-28555.31973252,0.00031286,2]
[406270010,1771675843113,-150.0,0.0003147,2]
[406270012,1771675843123,-200.0,0.00031724,29]
[406270014,1771675843132,-500.0,0.00031843,8]
[406270016,1771675843141,-26646.57,0.000319,2]
[406270018,1771675843151,-212.32,0.00032554,30]
[406270019,1771675843160,-150.0,0.00033043,2]
[406270020,1771675843169,-3855.27,0.000331,2]
[406270021,1771675843178,-352.03,0.000331,14]
[406270022,1771675843187,-263.72,0.00033403,2]
[406270023,1771675843196,-28555.31973252,0.00033697,2]
[406270024,1771675843205,-14773.0,0.000337,2]
[406270025,1771675843215,-2000.0,0.000345,2]
[406270026,1771675843224,-197.42,0.000345,14]
[406270027,1771675843234,-686.0,0.00034688,5]
[406270028,1771675843244,-5531.0,0.000347,3]
[406270029,1771675843253,-169.88351399,0.00034794,2]
[406270030,1771675843262,-367.65,0.000349,14]
[406270031,1771675843272,-521.0,0.000352,19]
[406270032,1771675843281,-184.17,0.0003556,2]
[406270033,1771675843290,-253.00517092,0.00035616,7]
[406270034,1771675843299,-583.31,0.00035771,2]
[406270035,1771675843309,-5531.0,0.000358,5]
[406270036,1771675843318,-150.0,0.00035965,2]
[406270037,1771675843327,-233.13055887,0.00036062,14]
[406270038,1771675843336,-373283.78,0.00036065,2]
[406270039,1771675843346,-28555.31973252,0.00036107,2]
[406270040,1771675843355,-1276.0,0.0003626,2]
[406270041,1771675843364,-5976.0,0.0003626,2]
[406270042,1771675843373,-2453.0,0.0003626,2]
[406270043,1771675843383,-212.32,0.00036583,30]
[406270044,1771675843392,-2000.0,0.000367,2]
[406270045,1771675843401,-109550.7560206,0.00036949,7]
[406270046,1771675843413,-173.74378417,0.00037,7]
[406270047,1771675843422,-326.65,0.000374,30]
[406270048,1771675843431,-1121.0,0.00038111,120]
[406270049,1771675843440,-4921.0,0.00038111,120]
[406270050,1771675843450,-1204.0,0.00038111,120]
[406270051,1771675843460,-1590.0,0.000382,2]
[406270052,1771675843469,-352.03,0.000384,14]
[406270053,1771675843479,-1932.939,0.0003846,51]
[406270054,1771675843488,-3855.27,0.000385,30]
[406270055,1771675843498,-1276.0,0.0003926,2]
[406270056,1771675843508,-5976.0,0.0003926,2]
[406270057,1771675843519,-2453.0,0.0003926,2]
[406270058,1771675843529,-264.04644025,0.00039265,2]
[406270059,1771675843539,-500.0,0.00039265,2]
[406270060,1771675843548,-500.0,0.00039265,2]
[406270061,1771675843557,-500.0,0.00039265,2]
[406270062,1771675843566,-500.0,0.00039265,2]
[406270063,1771675843576,-500.0,0.00039265,2]
[406270064,1771675843585,-500.0,0.00039265,2]